[Event "37th ECCC 2022"]
[Site "Mayrhofen"]
[Date "2022.10.04"]
[Round "2.8"]
[White "Vidit, Santosh Gujrathi"]
[Black "Jens, Jelmer"]
[Result "1-0"]
[ECO "A80"]
[WhiteElo "2710"]
[BlackElo "2410"]
[Annotator "TA"]
[PlyCount "139"]
[EventDate "2022.10.03"]
[EventType "team-tourn"]
[EventCountry "AUT"]
[SourceTitle "playchess.com"]
[Source "ChessBase"]
[SourceQuality "1"]
[TimeControl "40/5400+30:1800+30"]

{[%evp 9,139,35,35,19,40,49,51,64,44,53,72,66,85,76,87,70,104,101,119,114,111,112,109,83,122,119,150,146,151,106,112,109,110,99,110,98,106,102,197,197,194,187,186,181,197,188,318,318,342,156,168,147,248,206,214,0,210,79,355,69,77,69,67,48,60,45,76,67,97,49,85,71,82,85,109,41,85,29,16,14,14,14,41,0,0,0,0,0,0,0,0,0,0,0,0,0,0,0,0,0,0,-6,0,0,0,0,0,0,0,0,0,0,0,0,0,0,20,20,18,18,22,20,222,208,109,107,3362,4179,29979,4236,29995,29996]} 1. d4 {[%emt 0:00:40]} f5 {[%emt 0:00:05]} 2. Bg5 {[%emt 0:00:13]} g6 {[%emt 0:00:28]} 3. Nc3 {[%emt 0:00:25]} Bg7 {[%emt 0:00:55]} 4. Nf3 {[%emt 0:00:11]} Nf6 {[%emt 0:20:25]} 5. e3 {[%emt 0:00:19]} d6 {[%emt 0:03:06]} 6. Bc4 {[%emt 0:00:40] A80: Dutch Defence: Unusual White second moves.} Nc6 {[%emt 0:15:10] [#]} 7. O-O $146 {[%emt 0:12:45]} ({Predecessor:} 7. Qe2 h6 8. Bh4 g5 9. Bg3 e6 10. h4 g4 11. Nd2 Nh5 12. O-O-O Nxg3 13. fxg3 {0-1 (51) Sowray,P (2368)-Cherniaev,A (2432) Crawley 2013}) 7... Na5 {[%emt 0:12:08]} 8. Bd3 {[%emt 0:02:16] White is slightly better.} O-O {[%emt 0:00:50]} 9. Qe2 $1 {[%emt 0:00:33]} h6 {[%emt 0:06:15]} 10. Bxf6 {[%emt 0:00:58]} Bxf6 {[%emt 0:01:04]} 11. e4 {[%emt 0:00:51]} e6 {[%emt 0:01:12] Prevents Nd5.} 12. Rad1 {[%emt 0:02:44]} Bg7 {[%emt 0:06:58]} 13. Rfe1 {[%emt 0:05:07]} Bd7 {[%emt 0:06:56]} 14. exf5 {[%emt 0:18:42]} gxf5 {[%emt 0:01:29]} 15. Qd2 {[%emt 0:06:15]} Nc6 {[%emt 0:04:46]} 16. Bc4 {[%emt 0:06:52]} d5 {[%emt 0:00:57]} 17. Bb5 {[%emt 0:00:20]} Ne7 {[%emt 0:01:27]} 18. Bxd7 {[%emt 0:00:56]} Qxd7 {[%emt 0:00:06]} 19. Ne2 {[%emt 0:05:31] Hoping for Nf4.} Ng6 {[%emt 0:01:49]} 20. h4 {[%emt 0:00:06][%cal Bh2h4,Bh4h5][%mdl 32]} Rfe8 {[%emt 0:01:07]} 21. h5 {[%emt 0:00:14]} Nf8 {[%emt 0:00:33]} 22. Nf4 $36 {[%emt 0:00:07][%mdl 2048] Keeping Black busy.} Nh7 {[%emt 0:03:55]} 23. Ne5 {[%emt 0:00:57]} Bxe5 {[%emt 0:01:23]} (23... Qe7 $16) 24. Rxe5 $18 {[%emt 0:00:36]} (24. dxe5 Ng5 $14) 24... Ng5 {[%emt 0:02:50]} 25. Rde1 {[%emt 0:00:12]} c6 {[%emt 0:02:41]} 26. Qe3 {[%emt 0:03:36]} Kf7 {[%emt 0:00:50]} 27. Qd3 {[%emt 0:04:17]} (27. Qg3 Kf8 28. Qe3 Kf7) 27... Ne4 {[%emt 0:01:10]} (27... Kg8 $142 28. Qe3 Kf7) 28. f3 {[%emt 0:01:37]} Ng5 {[%emt 0:01:44] [#]} 29. c4 {[%emt 0:01:13]} (29. Nxe6 $1 $18 {[%mdl 512] is the precise move to win.} Rxe6 30. Qxf5+ Ke7 31. Qg6) 29... dxc4 $16 {[%emt 0:00:35]} 30. Qxc4 {[%emt 0:00:06]} Kf6 {[%emt 0:01:04]} (30... b5 $16 {was called for.} 31. Qc3 Rad8) 31. Qc3 {[%emt 0:05:10]} Kf7 {[%emt 0:00:13]} 32. Qc4 {[%emt 0:06:49] Strongly threatening Rxf5+.} Kf6 {[%emt 0:00:01]} 33. Ng6 {[%emt 0:01:27]} (33. Nd3 $1 $18 {[%cal Rd3c5] and White stays clearly on top.}) 33... Rad8 $2 {[%emt 0:01:06][%mdl 8192]} (33... Kg7 $16) 34. Rd1 $2 {[%emt 0:00:55]} (34. d5 $1 $18 Kg7 35. dxe6 Qd4+ 36. Qxd4 Rxd4 37. e7 (37. Rxf5 Rxe6 38. Ne5 Re7 $16)) 34... Nf7 {[%emt 0:00:35] [#]} 35. Qc3 $1 {[%emt 0:00:43][%cal Od4d5] Threatens to win with d5! The board is on fire.} Kg7 {[%emt 0:00:45]} 36. Re2 {[%emt 0:02:13] aiming for d5+.} Kh7 {[%emt 0:00:13]} 37. b4 {[%emt 0:03:16]} Qd6 {[%emt 0:00:38]} 38. a3 {[%emt 0:00:44]} Qg3 {[%emt 0:00:18] [#]} 39. Qe1 {[%emt 0:07:23]} ({White should try} 39. Rd3 $1 $16) 39... Qd6 {[%emt 0:01:09]} 40. f4 {[%emt 0:00:48]} Qd7 {[%emt 0:00:51]} 41. Rd3 {[%emt 0:06:38]} Nd6 {[%emt 0:05:43]} 42. a4 {[%emt 0:00:14]} ({Better is} 42. Ne5 $16 Qc7 43. a4 (43. Qg3 Rg8 $11)) 42... Nc4 {[%emt 0:03:00]} 43. Qh4 {[%emt 0:01:27]} (43. a5 $16) 43... Qf7 $11 {[%emt 0:02:52]} 44. b5 {[%emt 0:02:49]} cxb5 {[%emt 0:05:47]} 45. axb5 {[%emt 0:00:04]} Nd6 {[%emt 0:00:38][%cal Bc4d6,Bd6e4,Be4f6,Bf6d5][%mdl 32]} 46. Rb2 {[%emt 0:06:50]} Qg7 {[%emt 0:01:08]} 47. Kh2 {[%emt 0:07:29]} Ne4 {[%emt 0:02:11]} 48. Rc2 {[%emt 0:00:33]} Nf6 {[%emt 0:01:31]} ({Resist} 48... Rxd4 49. Rxd4 Qxd4 50. Rc7+ Kg8 51. Ne7+ Kf8 52. Ng6+ Kg8 53. Ne7+ Kf8 54. Rxb7 $16) 49. Ne5 {[%emt 0:00:20]} Rg8 {[%emt 0:01:36]} 50. Rdc3 {[%emt 0:01:28] Active counter play!} Nd5 {[%emt 0:02:28] Inhibits Rc7.} 51. Rg3 {[%emt 0:00:50]} Qxg3+ {[%emt 0:01:46]} 52. Qxg3 {[%emt 0:00:01]} Rxg3 {[%emt 0:00:07]} 53. Kxg3 {[%emt 0:00:02][%mdl 4096] Endgame KRN-KRN} Ra8 {[%emt 0:03:18]} 54. Nd7 {[%emt 0:04:41]} a5 {[%emt 0:01:21] ...a4 is the strong threat.} 55. bxa6 $1 {[%emt 0:00:07]} Rxa6 {[%emt 0:02:16]} 56. Rb2 {[%emt 0:00:10]} Ra3+ {[%emt 0:00:58]} 57. Kf2 {[%emt 0:00:13]} Nxf4 {[%emt 0:00:12]} 58. Rxb7 {[%emt 0:00:13] White wants to mate with Nf6+.} Kg8 {[%emt 0:00:15]} 59. Nf6+ {[%emt 0:00:38]} Kf8 {[%emt 0:00:05]} 60. Rh7 {[%emt 0:02:28]} Ra2+ {[%emt 0:01:55]} 61. Kf3 {[%emt 0:00:08]} Nxg2 {[%emt 0:00:26]} 62. Nd7+ {[%emt 0:00:13]} Ke8 {[%emt 0:00:52]} 63. Nc5 {[%emt 0:00:30]} Ne1+ {[%emt 0:00:37]} 64. Kf4 {[%emt 0:00:06] And now Ke5 would win.} Re2 $1 {[%emt 0:00:41]} 65. Rxh6 {[%emt 0:00:09]} Kf7 $2 {[%emt 0:00:08] [#]} (65... Ke7 $1 $11 {and Black has nothing to worry.}) 66. Rh7+ $1 $18 {[%emt 0:00:25]} Kg8 {[%emt 0:00:41]} 67. Rd7 {[%emt 0:01:39] Black must now prevent Kg5.} Rc2 $2 {[%emt 0:01:08][%mdl 8192]} (67... Nc2 $16) 68. Nxe6 {[%emt 0:00:20]} Rh2 {[%emt 0:00:27]} 69. Kxf5 {[%emt 0:00:36]} (69. Kg5 $142 Rb2 70. d5 Nd3 71. Kf6 Rg2 72. d6 Rg4 73. Re7 Nf4 74. Re8+ Kh7 75. Ng5+ Rxg5 76. Kxg5) 69... Rxh5+ {[%emt 0:00:04]} 70. Kg6 {[%emt 0:00:05] Weighted Error Value: White=0.33/Black=0.21 (precise)} 1-0

[Event "37th ECCC 2022"]
[Site "Mayrhofen"]
[Date "2022.10.04"]
[Round "2.9"]
[White "Van der Werf, Mark"]
[Black "Wojtaszek, Radoslaw"]
[Result "1/2-1/2"]
[ECO "E54"]
[WhiteElo "2399"]
[BlackElo "2693"]
[Annotator "TA"]
[PlyCount "70"]
[EventDate "2022.10.03"]
[EventType "team-tourn"]
[EventCountry "AUT"]
[SourceTitle "playchess.com"]
[Source "ChessBase"]
[SourceQuality "1"]
[TimeControl "40/5400+30:1800+30"]

{[%evp 15,70,-3,9,-6,-5,-1,-11,-10,0,0,-1,-4,0,0,0,0,0,0,0,0,20,2,35,29,26,14,14,11,13,9,12,10,18,14,16,0,0,0,0,0,0,0,9,11,11,0,0,0,0,0,0,0,0,0,0,0,0]} 1. d4 {[%emt 0:00:03]} Nf6 {[%emt 0:00:05]} 2. c4 {[%emt 0:00:04]} e6 {[%emt 0:00:05]} 3. Nc3 {[%emt 0:00:07]} Bb4 {[%emt 0:00:05]} 4. e3 {[%emt 0:00:10]} O-O {[%emt 0:00:17]} 5. Bd3 {[%emt 0:00:12]} d5 {[%emt 0:00:19]} 6. Nf3 {[%emt 0:00:17]} dxc4 {[%emt 0:00:36]} 7. Bxc4 {[%emt 0:00:09]} c5 {[%emt 0:00:10]} 8. O-O {[%emt 0:00:17]} Nc6 {[%emt 0:00:10]} 9. Ne2 {[%emt 0:07:39] E54: Nimzo-Indian: Rubinstein: Main Line: 7...dxc4 8 Bxc4.} (9. a3 {with more complications.} Ba5 10. h3 cxd4 11. exd4 h6 12. Be3) 9... cxd4 {[%emt 0:03:49]} 10. Nexd4 {[%emt 0:00:09]} (10. a3 {looks sharper.} Bd6 11. Nexd4 Bd7 12. b4) 10... Nxd4 {[%emt 0:05:43]} 11. Qxd4 {[%emt 0:02:20]} Qxd4 {[%emt 0:04:28]} 12. Nxd4 {[%emt 0:00:15]} Bd7 {[%emt 0:00:21]} 13. a3 {[%emt 0:06:47]} Bc5 {[%emt 0:01:07] [#]} 14. Rd1 $146 {[%emt 0:05:42]} ({Predecessor:} 14. Nb3 Bb6 15. Bd2 Rfc8 16. Rfc1 Ba4 17. Na5 Rc7 18. Bf1 Ne4 19. Bb4 Rac8 20. Rxc7 Rxc7 {½-½ (58) Sertic,R (2341)-Cvitan,O (2534) Bol 2014}) 14... Rfd8 {[%emt 0:08:26]} 15. b3 {[%emt 0:10:00]} Rac8 {[%emt 0:13:57]} 16. Bb2 {[%emt 0:01:03]} Kf8 {[%emt 0:05:41]} 17. Rac1 {[%emt 0:02:44]} Ke7 {[%emt 0:00:34]} 18. h3 {[%emt 0:03:49]} Ne4 {[%emt 0:08:49]} 19. Bd3 {[%emt 0:05:47]} Nf6 {[%emt 0:00:34]} 20. Be2 {[%emt 0:03:16]} Bd6 {[%emt 0:06:41] The position is equal.} 21. Nb5 {[%emt 0:06:29]} Bxb5 {[%emt 0:05:45]} 22. Bxb5 {[%emt 0:00:07]} Rxc1 {[%emt 0:00:08]} 23. Rxc1 {[%emt 0:00:11]} g6 {[%emt 0:00:21]} 24. Be2 {[%emt 0:10:35]} Ne4 {[%emt 0:01:38]} 25. Rd1 {[%emt 0:03:43]} Rc8 {[%emt 0:03:10]} 26. Rc1 {[%emt 0:01:17] Against Rc2} Rxc1+ {[%emt 0:04:36]} 27. Bxc1 $11 {[%emt 0:00:06][%mdl 4096] Endgame KBB-KBN} Be5 {[%emt 0:03:42]} 28. a4 {[%emt 0:02:59]} b6 {[%emt 0:01:21]} 29. Bc4 {[%emt 0:01:42]} Bc3 {[%emt 0:01:30]} 30. f3 {[%emt 0:05:31]} Nd2 {[%emt 0:07:55]} 31. Bxd2 {[%emt 0:00:06]} Bxd2 {[%emt 0:00:04]} 32. Kf2 {[%emt 0:00:07]} Kd6 {[%emt 0:00:13]} 33. Ke2 {[%emt 0:00:33]} Bc1 {[%emt 0:00:04]} 34. f4 {[%emt 0:06:17]} h5 {[%emt 0:00:53]} 35. g4 {[%emt 0:01:34]} hxg4 {[%emt 0:00:17] A balanced but interesting game.  Weighted Error Value: White=0.03 (flawless) /Black=0.03 (flawless)} 1/2-1/2

[Event "37th ECCC 2022"]
[Site "Mayrhofen"]
[Date "2022.10.04"]
[Round "2.10"]
[White "Nguyen, Thai Dai Van"]
[Black "Willemze, Thomas"]
[Result "1-0"]
[ECO "B31"]
[WhiteElo "2634"]
[BlackElo "2367"]
[Annotator "TA"]
[PlyCount "117"]
[EventDate "2022.10.03"]
[EventType "team-tourn"]
[EventCountry "AUT"]
[SourceTitle "playchess.com"]
[Source "ChessBase"]
[SourceQuality "1"]
[TimeControl "40/5400+30:1800+30"]

{[%evp 14,117,25,19,16,20,25,3,21,6,20,0,12,18,28,14,13,0,0,0,0,0,0,0,-6,-6,-4,-27,-19,-20,0,0,0,-25,-5,-7,0,0,0,-25,50,-129,-137,-132,-110,-123,-113,-214,-212,-212,-214,-214,-214,-214,-214,-276,-204,-183,-124,-125,-96,-95,-52,-94,-92,-170,-168,-164,-171,-190,-155,-138,-103,-145,-154,-159,-117,-133,-126,-126,-126,-107,-15,-16,-16,-16,0,0,0,0,0,0,0,0,0,0,0,0,0,0,0,0,27,27,42,51]} 1. e4 {[%emt 0:00:08]} c5 {[%emt 0:00:06]} 2. Nf3 {[%emt 0:00:11]} Nc6 {[%emt 0:00:06]} 3. Bb5 {[%emt 0:01:31]} g6 {[%emt 0:00:11]} 4. O-O {[%emt 0:01:54]} Bg7 {[%emt 0:00:15]} 5. Bxc6 {[%emt 0:01:01]} dxc6 {[%emt 0:00:14]} 6. d3 {[%emt 0:00:21]} Nf6 {[%emt 0:06:33][%cal Bg8f6,Bf6e8,Be8c7,Bc7e6][%mdl 32]} 7. Re1 {[%emt 0:00:31]} O-O {[%emt 0:02:57]} 8. h3 {[%emt 0:01:22]} Ne8 {[%emt 0:01:34] B31: Sicilian: 2...Nc6 3 Bb5 g6.} 9. e5 {[%emt 0:03:06]} Nc7 {[%emt 0:00:50]} 10. Nbd2 {[%emt 0:10:52]} b6 {[%emt 0:02:04] The position is equal.} 11. a4 {[%emt 0:01:06]} Ne6 {[%emt 0:04:11]} 12. Nc4 {[%emt 0:04:40]} Rb8 {[%emt 0:08:06] [#]} 13. b3 $146 {[%emt 0:06:34]} ({Predecessor:} 13. Ng5 Nd4 14. Bf4 Ra8 15. Ne4 h6 16. a5 Ba6 17. Ncd2 Qd7 18. Bh2 Kh7 19. Nf3 Ne6 20. Qe2 Bb7 21. Ned2 Rad8 22. axb6 {½-½ (22) Allan,D (2298)-Yanofsky,D (2346) Fredericton 1977}) 13... h6 {[%emt 0:09:48]} 14. Bd2 {[%emt 0:13:04]} Nd4 {[%emt 0:08:11]} 15. Nxd4 {[%emt 0:04:16]} cxd4 {[%emt 0:02:29]} 16. Qc1 {[%emt 0:03:48]} Kh7 {[%emt 0:01:04]} 17. Re4 {[%emt 0:04:49][%cal Od2h6]} Qd5 {[%emt 0:11:18]} 18. Rh4 {[%emt 0:06:03][%cal Rd2h6]} h5 {[%emt 0:00:43]} 19. Re4 {[%emt 0:02:18]} Bf5 {[%emt 0:10:32]} 20. Re2 {[%emt 0:00:06]} b5 {[%emt 0:00:44]} 21. Na5 {[%emt 0:11:24]} Rbc8 {[%emt 0:02:51]} 22. Qe1 {[%emt 0:05:54]} a6 {[%emt 0:00:32]} 23. Bg5 {[%emt 0:02:36]} f6 $40 {[%emt 0:02:30][%mdl 128] White needs to defend precisely.} 24. Bf4 {[%emt 0:00:39]} g5 {[%emt 0:10:07]} 25. Bh2 {[%emt 0:01:17]} g4 {[%emt 0:00:23]} 26. h4 {[%emt 0:00:16]} Rg8 {[%emt 0:04:07]} (26... c5 $11) 27. Qd2 $2 {[%emt 0:02:31]} (27. b4 $14 {keeps the upper hand.}) 27... g3 $1 $17 {[%emt 0:01:50]} 28. Bxg3 {[%emt 0:00:33]} Bh6 {[%emt 0:00:02][%cal Bg7h6,Bh6d2,Bd2c3][%mdl 32]} 29. Qe1 {[%emt 0:04:08]} Bg4 $1 {[%emt 0:01:25] And now ...f5 would win.} 30. exf6 {[%emt 0:01:56]} ({But not} 30. f3 $2 Bxf3 $1 {[%mdl 512]} 31. gxf3 Qxf3 $19) (30. Rd2 $17 {was called for.}) 30... Bxe2 $19 {[%emt 0:01:23]} 31. Qxe2 {[%emt 0:00:11]} exf6 {[%emt 0:02:50][%cal Oh6f4]} 32. Qe7+ {[%emt 0:00:50]} Kg6 {[%emt 0:02:22]} 33. Qa7 {[%emt 0:05:24]} Bd2 {[%emt 0:02:36]} 34. Nb7 {[%emt 0:00:17]} Bc3 {[%emt 0:00:41]} 35. Rf1 {[%emt 0:00:34]} bxa4 {[%emt 0:00:33]} (35... Ra8 $19 36. Qb6 Bb4) 36. bxa4 {[%emt 0:00:26]} Ra8 {[%emt 0:00:55]} 37. Qb6 {[%emt 0:00:11]} Rg7 {[%emt 0:00:31]} 38. Nc5 {[%emt 0:01:27]} f5 {[%emt 0:00:28]} 39. Bf4 {[%emt 0:00:54]} (39. Be5 $17 Re7 40. Bg3) 39... Kh7 {[%emt 0:00:30][%csl Gg7][%cal Rd5g2]} 40. Bg5 {[%emt 0:00:27] [#]} a5 $1 {[%emt 0:01:02]} 41. Na6 {[%emt 0:11:42] Strongly threatening Nc7.} Qd6 {[%emt 0:02:25] Prevents Nc7.} 42. Rb1 {[%emt 0:03:05]} Re8 {[%emt 0:02:23]} 43. Qc5 {[%emt 0:02:33]} Qxc5 {[%emt 0:04:46]} 44. Nxc5 {[%emt 0:00:02]} Bb4 {[%emt 0:00:40]} 45. Nb3 {[%emt 0:00:59]} c5 {[%emt 0:03:24]} 46. Kf1 {[%emt 0:00:24]} Rg6 {[%emt 0:00:29]} 47. Bd2 {[%emt 0:00:24]} Reg8 {[%emt 0:07:40]} ({Black should try} 47... Rc8 $17 {Hoping for ...c4.} 48. Bxb4 axb4) 48. Bxb4 $11 {[%emt 0:05:15]} cxb4 {[%emt 0:01:50]} 49. Nxa5 {[%emt 0:00:12][%mdl 4096] Endgame KRR-KRN} Ra6 {[%emt 0:03:07]} 50. Nb3 {[%emt 0:00:28]} Rxa4 {[%emt 0:01:39]} 51. Nxd4 {[%emt 0:00:12]} b3 {[%emt 0:00:24]} 52. c3 {[%emt 0:01:38]} Rb8 {[%emt 0:05:10]} 53. Rxb3 {[%emt 0:00:23]} Rxb3 {[%emt 0:00:14]} 54. Nxb3 {[%emt 0:00:04] KR-KN} Ra3 {[%emt 0:00:04]} 55. Nd4 {[%emt 0:00:11]} Rxc3 {[%emt 0:00:10]} 56. Ke2 {[%emt 0:00:08]} Kg6 {[%emt 0:00:09]} 57. Ne6 {[%emt 0:00:16]} Kf6 {[%emt 0:02:52]} 58. Nf4 {[%emt 0:00:06] White wants to mate with Nd5+.} Ke5 {[%emt 0:00:09] Against Nd5} 59. Ke3 {[%emt 0:00:28] Whites escaped into a draw.  Weighted Error Value: White=0.18 (very precise) /Black=0.14 (very precise)} 1-0

[Event "37th ECCC 2022"]
[Site "Mayrhofen"]
[Date "2022.10.04"]
[Round "2.11"]
[White "Piceu, Tom"]
[Black "Grandelius, Nils"]
[Result "0-1"]
[ECO "D04"]
[WhiteElo "2324"]
[BlackElo "2651"]
[Annotator "TA"]
[PlyCount "114"]
[EventDate "2022.10.03"]
[EventType "team-tourn"]
[EventCountry "AUT"]
[SourceTitle "playchess.com"]
[Source "ChessBase"]
[SourceQuality "1"]
[TimeControl "40/5400+30:1800+30"]

{[%evp 11,114,7,12,0,20,-20,-16,-12,-12,-32,-27,-37,-31,-37,-29,-43,-14,-11,0,0,0,-14,0,-17,0,-2,26,0,10,12,27,26,24,20,57,50,66,43,75,62,70,71,70,34,34,12,14,8,0,0,15,6,147,62,81,0,0,0,0,0,0,0,0,0,0,0,0,0,0,0,0,0,0,0,0,0,-6,-7,0,-6095,-5444,-1535,-122,-29976,-29977,-29977,-29978,-29979,-29980,-29980,-29981,-29981,-29982,-29982,-29983,-29983,-29978,-29977,-29978,-29974,0,-29983,-29984,-29984,-29983]} 1. d4 {[%emt 0:00:05]} Nf6 {[%emt 0:00:30]} 2. Nf3 {[%emt 0:00:10]} d5 {[%emt 0:00:55]} 3. e3 {[%emt 0:00:26]} c5 {[%emt 0:01:22]} 4. Be2 {[%emt 0:00:50]} cxd4 {[%emt 0:09:42]} 5. exd4 {[%emt 0:00:09]} Nc6 {[%emt 0:00:04]} 6. O-O {[%emt 0:00:31]} Bf5 {[%emt 0:09:40]} 7. c3 {[%emt 0:04:34] B13: Caro-Kann: Exchange Variation and Panov-Botvinnik Attack.} Qc7 {[%emt 0:02:35] [#]} 8. Bd3 $146 {[%emt 0:08:25]} ({Predecessor:} 8. Nh4 Bg6 9. f4 e6 10. Nf3 Bd6 11. Ne5 O-O 12. Nd2 Rab8 13. a4 a6 14. Ndf3 Be4 {0-1 (48) Teixeira,J (1785)-Rocha,M (1800) Cuiaba 2021}) 8... Bxd3 {[%emt 0:04:50]} 9. Qxd3 {[%emt 0:00:04] The position is equal.} e6 {[%emt 0:00:06]} 10. Bg5 {[%emt 0:07:19]} Ne4 {[%emt 0:02:30]} 11. Bh4 {[%emt 0:04:12]} Bd6 {[%emt 0:01:04]} 12. Bg3 {[%emt 0:02:39]} Nxg3 {[%emt 0:04:10]} 13. hxg3 {[%emt 0:01:57]} O-O-O {[%emt 0:02:53]} 14. a4 {[%emt 0:04:26]} h5 {[%emt 0:07:29][%cal Oh5h4]} 15. Na3 {[%emt 0:04:32]} Bxa3 {[%emt 0:04:16]} 16. Rxa3 {[%emt 0:00:08]} Na5 {[%emt 0:01:43]} 17. Ne5 {[%emt 0:06:35]} Kb8 {[%emt 0:12:46]} 18. Re1 {[%emt 0:07:30]} Rh6 {[%emt 0:02:51]} 19. b4 {[%emt 0:09:29]} Nc4 {[%emt 0:01:58]} 20. Nxc4 {[%emt 0:00:29]} dxc4 {[%emt 0:00:01]} 21. Qe4 {[%emt 0:01:51]} Rd5 {[%emt 0:05:30]} 22. Ra2 {[%emt 0:03:42][%cal Ba3a2,Ba2e2,Be2e3][%mdl 32]} Kc8 {[%emt 0:02:34]} 23. Rae2 {[%emt 0:02:32][%cal Oe4d5]} Qd7 {[%emt 0:01:09]} 24. a5 {[%emt 0:04:06]} a6 {[%emt 0:03:28]} 25. Re3 {[%emt 0:01:54]} Rf6 {[%emt 0:04:22]} 26. Qh7 {[%emt 0:10:25]} g6 {[%emt 0:06:07]} 27. Re5 {[%emt 0:02:11]} (27. f3 $5 {[%cal Re3e5]}) 27... Rf5 {[%emt 0:01:01]} 28. f4 {[%emt 0:03:42]} Rdxe5 {[%emt 0:04:50]} 29. Rxe5 {[%emt 0:01:46]} Rxe5 {[%emt 0:00:50]} 30. Qh8+ {[%emt 0:00:21]} Kc7 $1 {[%emt 0:01:51]} 31. Qxe5+ $11 {[%emt 0:00:05][%mdl 4096] Endgame KQ-KQ} Qd6 {[%emt 0:00:08]} (31... Kd8 $1 $11 {keeps the balance.}) 32. Qf6 {[%emt 0:03:31]} ({White should try} 32. Qc5+ $1 $16 Qxc5 33. dxc5) 32... Qd7 $14 {[%emt 0:00:05]} 33. Kf2 {[%emt 0:00:32]} (33. Kh2 $16) 33... Kc6 $11 {[%emt 0:00:56] Hoping for ...Kb5.} 34. Qe5 {[%emt 0:04:10][%csl Gb4,Gd4][%cal Re5c5]} Qd5 {[%emt 0:00:32]} 35. Qb8 {[%emt 0:00:49]} Kd7 {[%emt 0:00:41]} 36. Qf8 {[%emt 0:00:30]} Qf5 {[%emt 0:00:12]} 37. Kg1 {[%emt 0:00:41]} h4 {[%emt 0:00:53]} 38. gxh4 {[%emt 0:01:11]} Qxf4 {[%emt 0:00:02]} 39. Qa8 {[%emt 0:00:57]} Qe4 {[%emt 0:02:13]} 40. g3 {[%emt 0:00:30]} Ke7 {[%emt 0:01:01]} 41. Qc8 {[%emt 0:08:04]} Qe3+ {[%emt 0:13:53]} 42. Kh2 {[%emt 0:02:37]} Qxc3 {[%emt 0:03:14]} 43. Qxb7+ {[%emt 0:08:09]} Kf6 {[%emt 0:00:02]} 44. Qxa6 {[%emt 0:07:44]} Qc2+ {[%emt 0:10:35]} 45. Kg1 $2 {[%emt 0:02:48][%mdl 8192]} (45. Kh3 $11) 45... Qd1+ $1 $19 {[%emt 0:00:37]} 46. Kf2 {[%emt 0:02:14]} Qxd4+ $2 {[%emt 0:01:42]} (46... c3 $1 $19 {[%cal Rc3c2] is more deadly. ( -> ...c2)} 47. Qe2 c2 48. Qe5+ Ke7 49. Qg5+ Kd7 50. Qb5+ Kd8 51. Qg5+ Ke8) 47. Ke1 $2 {[%emt 0:00:40][%mdl 8192]} (47. Kg2 $17) 47... c3 {[%emt 0:01:15]} 48. Qf1+ {[%emt 0:01:26]} Kg7 $1 {[%emt 0:01:15][%csl Gc3][%cal Rd4d2]} 49. Qf4 {[%emt 0:00:01]} Qg1+ {[%emt 0:01:00]} 50. Ke2 {[%emt 0:00:02]} c2 {[%emt 0:00:53]} 51. Qe5+ {[%emt 0:00:06]} Kh7 {[%emt 0:01:01]} 52. Qf4 {[%emt 0:00:02] [#]} Qd1+ $1 {[%emt 0:00:26]} 53. Kf2 {[%emt 0:00:03]} Kg8 {[%emt 0:00:26]} 54. Qb8+ {[%emt 0:00:07] [#]} Kg7 $1 {[%emt 0:00:22]} 55. Qe5+ {[%emt 0:00:02]} Kh7 {[%emt 0:00:51]} 56. Qf4 $1 {[%emt 0:00:04]} c1=Q {[%emt 0:00:33][%csl Gc1][%cal Rd1f1]} 57. Qxf7+ {[%emt 0:00:11]} Kh6 {[%emt 0:00:04] Weighted Error Value: White=0.35/Black=0.24 (precise)} 0-1